bitfinex-derivatives/quotes_SOLF0:USTF0_20250307
["timestamp","ask_amount","ask_price","bid_price","bid_amount"]
[1741361931233,1.21167807,143.78,143.62,43.16]
[1741361931442,89.92624977,143.78,143.72,6.9569]
[1741361931651,43.2,143.78,143.67,46.72624977]
[1741361931847,212.4583,143.82,143.7,46.72624977]
[1741361932038,43.16,143.81,143.76,6.955]
[1741361932346,46.9475,143.84,143.73,46.72624977]
[1741361932549,0.05291039,143.8,143.77,0.05299866]
[1741361934750,0.05291039,143.8,143.79,6.9537]
[1741361935048,1.039e-05,143.8,143.79,6.9537]
[1741361935450,1.039e-05,143.8,143.78,6.9541]
[1741361935643,1.039e-05,143.8,143.77,0.05299866]
[1741361936045,1.039e-05,143.8,143.79,6.9537]
[1741361936451,1.039e-05,143.8,143.79,72.4337]
[1741361936952,1.039e-05,143.8,143.79,68.9537]
[1741361937252,1.039e-05,143.8,143.79,72.4337]
[1741361937846,3.8723,143.92,143.79,274.3]
[1741361938050,3.8723,143.92,143.82,46.72624977]
[1741361938253,3.8723,143.92,143.79,255.54624977]
[1741361938451,6.9484,143.9,143.83,6.9518]
[1741361938652,6.9484,143.9,143.79,255.54624977]
[1741361938853,50.59854977,143.92,143.79,255.54624977]
[1741361939054,0.04408068,143.86,143.83,0.04836072]
[1741361939456,6.948,143.91,143.83,7.00382024]
[1741361939652,3.8723,143.92,143.82,46.72624977]
[1741361939855,3.7095,143.93,143.82,46.72624977]
[1741361940156,0.05098059,143.88,143.86,0.0448798]
[1741361940344,42.44,143.98,143.86,0.0448798]
[1741361940548,42.44,143.98,143.86,3.8903798]
[1741361940853,42.44,143.98,143.86,3.8455]
[1741361941053,46.72624977,143.97,143.83,42.46]
[1741361941248,46.72624977,143.91,143.8,50.57174977]
[1741361941448,43.24,143.91,143.8,50.57174977]
[1741361941747,46.72624977,143.9,143.8,3.8455]
[1741361941946,53.98394977,143.9,143.8,3.8455]
[1741361942157,46.72624977,143.87,143.78,3.838]
[1741361942357,6.9509,143.85,143.79,6.9533]
[1741361942549,46.72624977,143.87,143.78,3.838]
[1741361942749,6.9515,143.84,143.78,6.9541]
[1741361942955,0.05112227,143.84,143.81,0.0522217]
[1741361943353,0.05112227,143.84,143.83,6.9518]
[1741361943654,0.05112227,143.84,143.81,0.0522217]
[1741361945556,283.94624977,143.94,143.81,0.0522217]
[1741361945866,283.94624977,143.94,143.8,50.27104977]
[1741361946349,89.94624977,143.94,143.8,50.27104977]
[1741361946557,6.9476,143.92,143.8,50.27104977]
[1741361946855,0.05236583,143.88,143.86,0.04885958]
[1741361947057,6.9487,143.9,143.86,0.04885958]
[1741361947259,0.04795404,143.88,143.86,0.04885958]
[1741361951753,5.404e-05,143.88,143.86,0.04885958]
[1741361952354,5.404e-05,143.88,143.86,6.99875958]
[1741361952553,5.404e-05,143.88,143.86,0.04885958]
[1741361953358,5.404e-05,143.88,143.87,89.40624977]
[1741361953553,50.51514977,144.01,143.87,93.14944977]
[1741361953756,3.7889,144.01,143.9,46.72624977]
[1741361953960,46.72624977,143.98,143.88,6.9489]
[1741361954161,46.72624977,143.98,143.87,3.7432]
[1741361954661,93.21514977,144.01,143.87,3.7432]
[1741361954859,0.03332775,143.94,143.91,0.04528594]
[1741361955756,46.72624977,143.93,143.79,46.4572]
[1741361955952,46.72624977,143.93,143.8,6.9531]
[1741361955953,6.9502,143.87,143.8,6.9531]
[1741361956258,46.72624977,143.87,143.77,62.0]
[1741361956458,3.8363,143.86,143.76,3.5826]
[1741361956966,3.8363,143.86,143.76,50.30884977]
[1741361957150,0.04570222,143.82,143.8,0.05254006]
[1741361957557,42.5,143.89,143.8,3.8372]
[1741361957851,42.5,143.89,143.8,50.56344977]
[1741361958055,42.5,143.89,143.84,6.9511]
[1741361958259,42.5,143.89,143.8,50.56344977]
[1741361958455,3.8246,143.92,143.83,46.72624977]
[1741361958660,46.0856,143.96,143.86,46.72624977]
[1741361958861,42.42,144.01,143.92,46.72624977]
[1741361959059,42.4,144.04,143.92,46.72624977]
[1741361959258,0.02731369,143.98,143.92,46.72624977]
[1741361959461,0.02731369,143.98,143.97,0.04820916]
[1741361959764,0.02731369,143.98,143.96,0.04827594]
[1741361961665,3.50731369,143.98,143.84,42.18]
[1741361961860,54.14944977,143.97,143.85,3.5961]
[1741361962671,0.04949014,143.93,143.9,0.0471894]
[1741361964069,0.04949014,143.93,143.92,6.9474]
[1741361964368,0.04949014,143.93,143.9,0.0471894]
[1741361965171,0.04949014,143.93,143.91,6.9478]
[1741361965468,0.04949014,143.93,143.9,0.0471894]
[1741361966262,6.9495,143.88,143.82,6.9522]
[1741361966470,6.9495,143.88,143.79,3.5656]
[1741361966767,88.66624977,143.92,143.79,3.5656]
[1741361966969,2.4722,143.91,143.79,3.5656]
[1741361967157,282.68624977,143.96,143.79,3.5656]
[1741361967358,0.04578458,143.89,143.86,6.99599422]
[1741361967557,88.68624977,143.96,143.84,46.72624977]
[1741361967771,0.04596722,143.89,143.85,0.05028565]
[1741361967959,41.92,143.91,143.81,46.72624977]
[1741361968163,0.04892149,143.88,143.86,0.05107529]
[1741361968965,6.9498,143.87,143.86,0.05107529]
[1741361969367,0.04892149,143.88,143.75,54.09494977]
[1741361969673,3.6161,143.89,143.75,54.09494977]
[1741361969674,46.72624977,143.87,143.75,54.09494977]
[1741361969970,48.7507,143.86,143.8,6.9529]
[1741361970160,41.8,143.86,143.75,54.09494977]
[1741361970664,0.05261019,143.82,143.79,0.04969604]
[1741361971575,1.019e-05,143.82,143.81,6.9527]
[1741361972376,41.72,143.89,143.81,50.20624977]
[1741361972574,41.72,143.89,143.82,3.6081]
[1741361972968,41.72,143.89,143.78,46.72624977]
[1741361973178,5.21495447,143.88,143.77,3.6081]
[1741361973483,41.72,143.89,143.87,6.9498]
[1741361973673,0.04599968,143.84,143.81,0.04481236]
[1741361973866,41.72,143.89,143.79,46.72624977]
[1741361974074,0.04995332,143.84,143.81,0.04838203]
[1741361975168,0.04995332,143.84,143.83,6.9518]
[1741361975975,3.748,143.94,143.81,42.12838203]
[1741361976166,5.23640619,143.93,143.83,46.72624977]
[1741361976367,5.23640619,143.92,143.85,6.9507]
[1741361976571,5.23640619,143.91,143.79,46.72624977]
[1741361976774,47.39640619,143.9,143.77,3.6081]
[1741361976978,6.9506,143.86,143.8,6.9529]
[1741361977170,5.23640619,143.85,143.8,6.9529]
[1741361977373,5.25167532,143.84,143.8,6.953]
[1741361977677,0.04395562,143.84,143.81,0.04849457]
[1741361977863,5.25173979,143.83,143.81,0.04849457]
[1741361978071,0.04395562,143.84,143.81,0.04849457]
[1741361978679,5.25274404,143.83,143.81,0.04849457]
[1741361978873,5.25274404,143.82,143.81,0.04849457]
[1741361979080,0.04395562,143.84,143.81,0.04849457]
[1741361979281,5.25343601,143.83,143.81,0.04849457]
[1741361979476,5.25246153,143.82,143.81,0.04849457]
[1741361979682,0.04395562,143.84,143.81,0.04849457]
[1741361979878,3.748,143.94,143.83,46.72624977]
[1741361980880,46.72624977,143.89,143.76,46.72624977]
[1741361981183,48.324,143.88,143.76,46.72624977]
[1741361981583,46.72624977,143.86,143.75,7.3687]
[1741361981778,3.6452,143.85,143.75,7.3687]
[1741361982372,0.04892082,143.81,143.79,0.04773744]
[1741361982878,97.85225363,143.97,143.8,62.0]
[1741361983083,7.4303,143.96,143.84,46.72624977]
[1741361983485,88.72624977,143.95,143.83,41.98]
[1741361983783,46.72624977,143.92,143.78,46.72624977]
[1741361983984,0.02822543,143.9,143.88,0.04753904]
[1741361984279,46.72624977,143.92,143.78,46.72624977]
[1741361984479,355.05918735,143.95,143.78,46.72624977]
[1741361984673,0.02822543,143.86,143.85,6.9508]
[1741361984874,355.05918735,143.95,143.82,46.72624977]
[1741361985079,0.02822543,143.87,143.84,0.0482869]
[1741361985279,6.9475,143.92,143.82,46.72624977]
[1741361985579,2.543e-05,143.87,143.85,46.72624977]
[1741361985782,114.33293758,143.95,143.9,6.9481]
[1741361986077,72.33293758,143.95,143.85,46.72624977]
[1741361986279,7.4303,143.96,143.86,49.2155]
[1741361986674,7.4303,143.96,143.9,0.05095221]
[1741361987482,6.9473,143.93,143.9,0.05095221]
[1741361987880,7.4303,143.96,143.9,0.05095221]
[1741361989582,9.9782,143.96,143.9,0.05095221]
[1741361989890,9.9782,143.96,143.83,11.0907]
[1741361990088,0.05027674,143.94,143.83,11.0907]
[1741361990283,6.9487,143.9,143.85,6.9505]
[1741361990588,41.44,143.92,143.83,11.0907]
[1741361990987,0.05064753,143.89,143.86,0.04930707]
[1741361991682,0.05064753,143.89,143.88,6.9494]
[1741361992485,242.7103,143.96,143.86,0.04930707]
[1741361992687,242.7103,143.96,143.84,46.72624977]
[1741361992688,6.9464,143.95,143.84,46.72624977]
[1741361992988,48.7103,143.96,143.85,62.0]
[1741361993384,48.7103,143.96,143.83,11.0907]
[1741361993592,46.72624977,143.94,143.83,11.0907]
[1741361993890,46.72624977,143.94,143.88,0.04970398]
[1741361994088,46.72624977,143.91,143.77,46.72624977]
[1741361994283,41.18,143.9,143.77,50.55504977]
[1741361994686,46.72624977,143.88,143.77,3.8288]
[1741361994993,3.7858,143.87,143.77,3.8288]
[1741361995194,0.05003409,143.84,143.81,0.0461658]
[1741361995390,0.05003409,143.84,143.81,6.9988658]
[1741361995694,0.05003409,143.84,143.81,0.0461658]
[1741361997691,0.05003409,143.84,143.83,6.9518]
[1741361998391,41.18,143.9,143.81,0.0461658]
[1741361998592,41.18,143.9,143.79,87.50624977]
[1741361998989,41.18,143.9,143.84,6.951]
[1741361999188,41.18,143.9,143.79,87.50624977]
[1741361999599,41.18,143.9,143.83,0.04492413]
[1741362000292,44.6899,143.93,143.83,0.04492413]
[1741362000497,44.6899,143.93,143.79,40.78]
[1741362000799,6.9485,143.9,143.87,0.0475964]
[1741362001094,44.6899,143.93,143.87,6.9497]
[1741362001297,6.9492,143.89,143.78,87.54624977]
[1741362001490,44.6899,143.93,143.89,0.04964035]
[1741362001696,3.8499,143.93,143.85,46.72624977]
[1741362001990,44.5655,143.96,143.9,0.04626788]
[1741362002196,44.5655,143.96,143.92,6.947]
[1741362002390,44.5655,143.96,143.9,0.04626788]
[1741362002788,44.5655,143.96,143.91,6.9475]
[1741362003095,44.5655,143.96,143.9,0.04626788]
[1741362003396,46.72624977,143.94,143.78,87.60624977]
[1741362003587,6.9497,143.88,143.8,3.6857]
[1741362003793,40.86,143.88,143.8,3.6857]
[1741362004192,6.9506,143.86,143.8,3.6857]
[1741362004392,40.86,143.88,143.8,3.6857]
[1741362004593,0.04626788,143.84,143.82,0.0503395]
[1741362004989,0.04626788,143.84,143.83,6.9518]
[1741362005189,0.04626788,143.84,143.82,0.0503395]
[1741362005391,0.04626788,143.84,143.83,6.9518]
[1741362006699,0.04626788,143.84,143.82,7.0024395]
[1741362006898,0.04626788,143.84,143.82,0.0503395]
[1741362007394,0.04626788,143.84,143.83,6.9518]
[1741362007598,0.04626788,143.84,143.82,0.0503395]
[1741362008396,6.788e-05,143.84,143.83,6.9518]
[1741362009103,6.788e-05,143.84,143.82,0.0503395]
[1741362009104,6.788e-05,143.84,143.82,7.0024395]
[1741362009295,6.788e-05,143.84,143.82,0.0503395]
[1741362009495,6.788e-05,143.84,143.83,6.9518]
[1741362010302,6.788e-05,143.84,143.82,0.0503395]
[1741362011004,6.788e-05,143.84,143.83,6.9518]
[1741362011202,6.788e-05,143.84,143.82,0.0503395]
[1741362011604,6.788e-05,143.84,143.83,6.9518]
[1741362012105,6.788e-05,143.84,143.82,0.0503395]
[1741362012701,6.788e-05,143.84,143.83,6.9518]
[1741362013199,6.788e-05,143.84,143.82,0.0503395]
[1741362015099,6.788e-05,143.84,143.83,6.9518]
[1741362015803,6.788e-05,143.84,143.83,10.4318]
[1741362016304,6.788e-05,143.84,143.83,68.9518]
[1741362017300,6.788e-05,143.84,143.83,119.15804977]
[1741362017510,3.5179,143.94,143.86,46.72624977]
[1741362018005,3.6255,143.96,143.86,46.72624977]
[1741362018200,122.84668735,143.99,143.86,46.72624977]
[1741362018403,40.06,143.98,143.86,46.72624977]
[1741362018705,40.06,143.98,143.91,0.04654132]
[1741362019401,6.9452,143.97,143.91,0.04654132]
[1741362019601,40.06,143.98,143.92,6.9472]
[1741362019796,40.06,143.98,143.91,0.04654132]
[1741362020506,50.51374977,143.99,143.91,0.04654132]
[1741362020507,43.7275,143.99,143.91,0.04654132]
[1741362020710,43.7275,143.99,143.92,62.0]
[1741362021009,39.94,143.99,143.92,112.48424977]
[1741362021308,39.94,143.99,143.94,0.04961777]
[1741362021808,3.8386,144.0,143.94,0.04961777]
[1741362022009,3.8386,144.0,143.96,6.9453]
[1741362022306,72.33293758,144.06,143.95,46.72624977]
[1741362022505,72.33293758,144.06,143.98,46.72624977]
[1741362022707,72.33293758,144.06,143.99,3.5352]
[1741362023011,86.54624977,144.07,143.99,0.05260141]
[1741362023199,46.72624977,144.04,143.99,0.05260141]
[1741362023506,86.54624977,144.07,143.99,0.05260141]
[1741362024210,6.9414,144.05,143.99,0.05260141]
[1741362024612,79.73583758,144.08,143.99,0.05260141]
[1741362024811,79.73583758,144.08,144.0,46.72624977]
[1741362025012,72.33293758,144.08,144.02,0.0504113]
[1741362026105,79.27303758,144.08,144.02,0.0504113]
[1741362026306,72.33293758,144.08,144.02,0.0504113]
[1741362027206,6.9396,144.09,144.02,0.0504113]
[1741362027512,46.767,144.11,144.02,0.0504113]
[1741362027714,6.9389,144.1,144.03,62.0]
[1741362027910,72.33293758,144.15,144.05,0.04863757]
[1741362028112,79.86233758,144.15,144.03,108.72624977]
[1741362028316,46.72624977,144.13,144.09,0.05342043]
[1741362028615,39.54,144.14,144.09,0.05342043]
[1741362028818,79.86233758,144.15,144.09,0.05342043]
[1741362030215,79.86233758,144.15,144.01,353.0511294]
[1741362030216,46.72624977,144.13,144.01,353.0511294]
[1741362030509,6.9406,144.07,144.01,219.0684]
[1741362030715,39.62,144.12,144.01,3.6655]
[1741362030916,46.72624977,144.1,143.98,3.8057]
[1741362031111,46.72624977,144.07,143.93,3.777]
[1741362031309,46.72624977,144.04,143.88,255.0206]
[1741362031617,46.72624977,144.01,143.91,6.9479]
[1741362031914,39.54,144.0,143.88,7.3545]
[1741362032110,6.9464,143.95,143.89,6.9485]
[1741362032314,39.54,144.0,143.88,7.3545]
[1741362032707,6.9465,143.94,143.93,0.05234175]
[1741362033113,0.05298827,143.95,143.93,0.05234175]
[1741362033624,39.45298827,143.95,143.93,0.05234175]
[1741362033815,39.45298827,143.95,143.86,3.5775]
[1741362034015,7.4867,143.94,143.85,46.72624977]
[1741362034213,7.4867,143.94,143.82,255.10624977]
[1741362034514,194.0,144.04,143.91,46.72624977]
[1741362034715,3.7508,144.03,143.94,46.72624977]
[1741362035015,0.05288691,143.99,143.97,46.72624977]
[1741362035214,46.72624977,144.12,143.98,40.46]
[1741362035411,7.3799,144.09,144.0,46.72624977]
[1741362036013,87.18624977,144.08,143.96,46.72624977]
[1741362036319,0.04554996,144.03,144.01,0.05017864]
[1741362036615,159.51918735,144.08,144.01,0.05017864]
[1741362036817,0.04467626,144.03,143.93,3.6111]
[1741362037018,159.51918735,144.08,143.93,3.6111]
[1741362038216,0.04554198,144.02,143.99,0.04524578]
[1741362038412,6.9441,143.99,143.88,248.7]
[1741362038719,46.72624977,143.96,143.83,86.98624977]
[1741362038920,46.72624977,143.96,143.85,6.9507]
[1741362038921,40.26,143.95,143.85,6.9507]
[1741362039220,40.26,143.95,143.81,3.5657]
[1741362039613,40.26,143.95,143.87,0.04616074]
[1741362039614,0.05270188,143.89,143.87,0.04616074]
[1741362039812,0.05270188,143.89,143.81,3.5657]
[1741362039813,0.05270188,143.89,143.8,46.72624977]
[1741362040006,6.9507,143.86,143.77,6.9542]
[1741362040210,40.24,143.85,143.77,6.9542]
[1741362040408,40.24,143.85,143.74,75.29118902]
[1741362041016,0.04784396,143.81,143.78,0.04952744]
[1741362042917,40.18,143.8,143.69,3.8445]
[1741362043226,6.9541,143.79,143.71,6.9571]
[1741362043414,6.9541,143.79,143.69,3.8445]
[1741362043617,43.9516,143.8,143.69,3.8445]
[1741362043816,43.9516,143.8,143.71,6.9571]
[1741362044017,0.05301469,143.76,143.73,0.04539923]
[1741362044917,0.05301469,143.76,143.74,6.9557]
[1741362045515,0.05301469,143.76,143.75,6.9556]
[1741362045719,0.05301469,143.76,143.75,68.9556]
[1741362046215,0.05301469,143.76,143.75,62.0]
[1741362046522,46.72624977,143.9,143.75,62.0]
[1741362046716,236.2077,143.89,143.77,46.72624977]
[1741362046922,236.2077,143.89,143.79,6.9537]
[1741362047215,236.2077,143.89,143.77,46.72624977]
[1741362047414,196.3477,143.89,143.8,46.72624977]
[1741362047715,0.04828254,143.86,143.83,0.0499705]
[1741362048721,6.9512,143.85,143.83,0.0499705]
[1741362049023,39.82,143.84,143.75,46.72624977]
[1741362049229,39.82,143.84,143.72,43.3694]
[1741362050325,0.04598412,143.79,143.77,0.04784046]
[1741362050624,6.9523,143.82,143.77,0.04784046]
[1741362050823,0.04539046,143.79,143.77,0.04784046]
[1741362053120,39.54,143.86,143.77,46.77409023]
[1741362053319,46.4095,143.88,143.8,46.72624977]
[1741362053523,39.46,143.88,143.8,46.72624977]
[1741362053726,39.46,143.88,143.81,62.0]
[1741362053915,2.3477,143.9,143.81,62.0]
[1741362054219,39.4,143.89,143.81,62.0]
[1741362054525,0.04463981,143.87,143.84,0.04873285]
[1741362054917,6.9508,143.85,143.84,0.04873285]
[1741362055118,0.04463981,143.87,143.84,0.04873285]
[1741362056527,6.9508,143.85,143.84,0.04873285]
[1741362057327,6.99493981,143.87,143.84,0.04873285]
[1741362057624,0.04463981,143.87,143.85,62.0]
[1741362057828,6.9503,143.86,143.85,62.0]
[1741362058434,0.04463981,143.87,143.85,62.0]
[1741362060730,0.04463981,143.87,143.86,6.9503]
[1741362061119,0.04463981,143.87,143.85,6.9507]
[1741362061323,0.04463981,143.87,143.84,46.77498262]
[1741362061536,0.04463981,143.87,143.84,0.04873285]
[1741362062230,6.9508,143.85,143.84,0.04873285]
[1741362063428,46.72624977,143.85,143.71,46.72624977]
[1741362064024,6.9542,143.78,143.71,46.72624977]
[1741362064328,38.64,143.8,143.71,46.72624977]
[1741362064520,0.04997669,143.78,143.75,0.0457747]
[1741362064724,6.9552,143.76,143.75,0.0457747]
[1741362066328,0.04997669,143.78,143.67,3.6292]
[1741362066533,50.49914977,143.79,143.67,3.6292]
[1741362066720,6.9555,143.76,143.7,6.9577]
[1741362067123,50.49914977,143.79,143.68,6.9589]
[1741362067326,38.54,143.78,143.67,3.6292]
[1741362067630,0.04445947,143.75,143.72,0.04695979]
[1741362067833,6.9576,143.71,143.65,6.96]
[1741362068138,38.48,143.7,143.61,46.72624977]
[1741362068330,38.44,143.74,143.64,46.72624977]
[1741362068929,0.05269216,143.7,143.68,0.04481261]
[1741362069125,38.46,143.69,143.59,3.6255]
[1741362069335,3.6187,143.68,143.59,3.6255]
[1741362069931,10.5778,143.68,143.59,3.6255]
[1741362070130,3.6187,143.68,143.59,3.6255]
[1741362070435,4.777e-05,143.65,143.64,6.961]
[1741362070830,38.34,143.73,143.62,46.72624977]
[1741362071040,6.9575,143.72,143.66,6.9598]
[1741362071329,38.34,143.73,143.62,46.72624977]
[1741362071534,45.297,143.73,143.67,6.9592]
[1741362071732,0.05080791,143.69,143.66,0.0481498]
[1741362072135,0.05080791,143.69,143.67,6.9591]
[1741362072437,0.05080791,143.69,143.66,0.0481498]
[1741362074141,0.05080791,143.69,143.68,6.959]
[1741362074528,0.05080791,143.69,143.66,0.0481498]
[1741362074729,0.05080791,143.69,143.67,6.9591]
[1741362075033,0.05080791,143.69,143.66,0.0481498]
[1741362075230,0.05080791,143.69,143.66,3.6667498]
[1741362075536,0.05080791,143.69,143.68,6.959]
[1741362075939,38.34,143.77,143.68,46.72624977]
[1741362076235,194.0,143.79,143.68,46.72624977]
[1741362076425,38.34,143.79,143.68,46.72624977]
[1741362076941,38.34,143.79,143.71,46.72624977]
[1741362077240,38.34,143.81,143.72,0.05034196]
[1741362077440,0.0516711,143.76,143.71,46.72624977]
[1741362077642,0.0516711,143.76,143.75,7.00514927]
[1741362077845,0.0516711,143.76,143.71,46.72624977]
[1741362078039,0.0516711,143.76,143.74,0.05129091]
[1741362078344,0.0516711,143.76,143.75,6.9556]
[1741362078543,38.34,143.81,143.74,46.77754068]
[1741362078844,45.2932,143.81,143.76,6.9551]
[1741362079037,45.2932,143.81,143.74,46.77754068]
[1741362079038,38.34,143.81,143.74,0.05129091]
[1741362079240,38.34,143.81,143.71,62.0]
[1741362079842,38.34,143.81,143.75,0.04942094]
[1741362079843,0.04678912,143.77,143.75,0.04942094]
[1741362081142,0.04678912,143.77,143.57,140.9256294]
[1741362081143,85.06624977,143.76,143.61,38.34]
[1741362081337,6.0299,143.75,143.61,85.06624977]
[1741362082043,46.72624977,143.73,143.61,38.34]
[1741362082238,0.04608045,143.69,143.67,0.05290723]
[1741362084548,0.04608045,143.69,143.67,7.01230723]
[1741362085041,0.04608045,143.69,143.68,6.959]
[1741362085245,38.34,143.71,143.67,0.05290723]
[1741362085549,38.34,143.76,143.67,46.779157]
[1741362085751,38.34,143.76,143.74,6.956]
[1741362086045,38.34,143.76,143.68,7.2444]
[1741362086238,38.34,143.76,143.75,6.9556]
[1741362086442,38.34,143.8,143.71,0.04973253]
[1741362086747,38.34,143.8,143.7,46.72624977]
[1741362087051,0.04983005,143.77,143.74,0.0438981]
[1741362089852,0.04983005,143.77,143.74,6.9999981]
[1741362090349,0.04983005,143.77,143.76,6.9552]
[1741362090738,0.04983005,143.77,143.74,0.0438981]
[1741362091542,0.04983005,143.77,143.76,6.9552]
[1741362091738,0.04983005,143.77,143.74,0.0438981]
[1741362092156,0.04983005,143.77,143.76,6.9552]
[1741362093155,42.0976,143.83,143.78,6.9538]
[1741362093358,42.0976,143.83,143.73,46.72624977]
[1741362093661,88.82384977,143.83,143.69,3.5936]
[1741362093860,46.72624977,143.8,143.69,3.5936]
[1741362094061,2.3469,143.79,143.69,3.5936]
[1741362094258,0.05081806,143.76,143.73,0.04854601]
[1741362094453,6.9524,143.82,143.72,46.72624977]
[1741362094757,42.0976,143.83,143.72,46.72624977]
[1741362095652,0.04381903,143.79,143.76,0.04384338]
[1741362096747,0.04381903,143.79,143.78,6.9542]
[1741362096947,6.9509,143.85,143.76,0.04384338]
[1741362097161,42.085,143.86,143.76,3.7854]
[1741362097360,38.34,143.86,143.78,46.72624977]
[1741362097557,38.34,143.86,143.79,62.0]
[1741362098059,3.6189,143.88,143.79,62.0]
[1741362098259,0.04653841,143.84,143.81,0.05004164]
[1741362099058,38.32,143.83,143.72,38.32]
[1741362099256,3.7215,143.82,143.72,38.32]
[1741362099961,6.9534,143.8,143.75,6.9553]
[1741362100160,3.7215,143.82,143.72,38.32]
[1741362100459,6.9547,143.77,143.76,0.04609116]
[1741362101258,0.05148125,143.79,143.76,0.04609116]
[1741362101460,38.32,143.78,143.7,6.958]
[1741362101764,6.9559,143.75,143.66,3.7578]
[1741362101960,38.32,143.78,143.66,3.7578]
[1741362102158,38.32,143.78,143.67,3.6058]
[1741362102356,85.04624977,143.78,143.67,3.6058]
[1741362102758,0.05157658,143.74,143.71,0.05290791]
[1741362103153,0.05157658,143.74,143.73,6.9566]
[1741362103660,0.05157658,143.74,143.71,0.05290791]
[1741362103861,0.05157658,143.74,143.72,6.9567]
[1741362104067,0.05157658,143.74,143.71,0.05290791]
[1741362104460,38.32,143.79,143.71,0.05290791]
[1741362104862,38.32,143.79,143.72,6.9569]
[1741362105062,5.27941801,143.78,143.7,46.72624977]
[1741362105267,5.27911818,143.77,143.67,88.65204977]
[1741362105462,38.32,143.79,143.67,50.33204977]
[1741362105665,0.05159136,143.73,143.71,0.04467358]
[1741362105863,46.72624977,143.78,143.71,0.04467358]
[1741362106067,0.04969042,143.73,143.71,0.04467358]
[1741362106262,45.2763,143.74,143.71,0.04467358]
[1741362106463,0.05151618,143.73,143.71,7.00207358]
[1741362106766,0.05151618,143.73,143.71,0.04467358]
[1741362107870,6.9571,143.72,143.71,0.04467358]
[1741362108268,5.29043382,143.72,143.66,6.9599]
[1741362108469,5.29043382,143.72,143.64,46.72624977]
[1741362108470,5.29043382,143.71,143.64,46.72624977]
[1741362108666,7.4079,143.73,143.66,6.9598]
[1741362108870,6.9578,143.71,143.64,46.72624977]
[1741362109072,7.4079,143.73,143.64,46.72624977]
[1741362109273,5.28747941,143.72,143.64,46.72624977]
[1741362109574,0.04471675,143.7,143.67,0.04525383]
[1741362109869,38.32,143.74,143.67,0.04525383]
[1741362110170,38.32,143.78,143.69,46.72624977]
[1741362110374,5.28855607,143.77,143.69,46.72624977]
[1741362110566,5.28855607,143.76,143.69,29.27441748]
[1741362110763,38.32,143.78,143.69,29.27441748]
[1741362111074,0.04602002,143.74,143.71,0.04965668]
[1741362111569,0.04602002,143.74,143.73,6.9566]
[1741362111770,38.32,143.82,143.72,29.27441748]
[1741362111967,5.29223012,143.81,143.75,29.27441748]
[1741362112168,38.32,143.82,143.75,29.27441748]
[1741362112471,12.24660712,143.81,143.71,67.59441748]
[1741362112769,38.32,143.82,143.73,47.54235327]
[1741362112969,2.221e-05,143.77,143.76,47.54235327]
[1741362113171,38.32,143.82,143.76,47.54235327]
[1741362113669,45.2723,143.82,143.76,47.54235327]
[1741362113871,5.30024037,143.81,143.76,47.54235327]
[1741362114171,0.04658488,143.8,143.76,47.54235327]
[1741362115173,0.04658488,143.8,143.76,54.49705327]
[1741362115375,0.04658488,143.8,143.76,47.54235327]
[1741362115871,0.04658488,143.8,143.75,0.04560851]
[1741362116967,0.04658488,143.8,143.75,3.74740851]
[1741362117671,0.04658488,143.8,143.79,6.9537]
[1741362118372,38.3,143.86,143.78,0.05032348]
[1741362118577,5.31725513,143.85,143.77,47.54235327]
[1741362118871,5.31725513,143.84,143.77,109.54235327]
[1741362119175,5.31725513,143.83,143.77,47.54235327]
[1741362119380,38.3,143.86,143.77,47.54235327]
[1741362119574,0.04072648,143.81,143.79,0.04592637]
[1741362119873,38.3,143.89,143.8,47.54235327]
[1741362120077,5.31611937,143.88,143.83,6.9516]
[1741362120377,5.31611937,143.87,143.8,47.54235327]
[1741362120577,5.31611937,143.86,143.8,47.54235327]
[1741362120779,5.31611937,143.85,143.8,47.54235327]
[1741362120978,38.3,143.89,143.82,0.04588288]
[1741362121174,5.31853915,143.88,143.82,0.04588288]
[1741362121375,5.31853915,143.87,143.82,0.04588288]
[1741362121676,156.04175964,143.95,143.83,47.54235327]
[1741362121875,5.31820608,143.93,143.86,6.9499]
[1741362122071,5.31820608,143.92,143.83,47.54235327]
[1741362122277,5.31820608,143.91,143.89,47.54235327]
[1741362122584,18.56229893,143.94,143.93,6.9469]